[Event "Late-Titled-Tuesday-Blitz-March-19-2024"]
[Site "Chess.com"]
[Date "2024.03.19"]
[Round "6"]
[White "Mr_Heisenberg13"]
[Black "M1711"]
[Result "0-1"]
[WhiteElo "2913"]
[BlackElo "2654"]
[TimeControl "180+1"]
[EndTime "15:06:42 PDT"]
[Termination "M1711 won by resignation"]

1. e4 {[%clk 0:03:00.9]} 1... c6 {[%clk 0:02:58.5]} 2. d4 {[%clk 0:03:00.3]}
2... d5 {[%clk 0:02:59]} 3. e5 {[%clk 0:03:00.9]} 3... g6 {[%clk 0:02:57.9]} 4.
h4 {[%clk 0:02:58.3]} 4... h5 {[%clk 0:02:54.6]} 5. c4 {[%clk 0:02:56.4]} 5...
Bg7 {[%clk 0:02:53.1]} 6. Nc3 {[%clk 0:02:56.1]} 6... Nh6 {[%clk 0:02:49.4]} 7.
cxd5 {[%clk 0:02:45.8]} 7... cxd5 {[%clk 0:02:49.3]} 8. Bd3 {[%clk 0:02:40.5]}
8... Nc6 {[%clk 0:02:48.3]} 9. Nge2 {[%clk 0:02:40.2]} 9... Nf5 {[%clk
0:02:34.8]} 10. Bb5 {[%clk 0:02:33.7]} 10... Qb6 {[%clk 0:02:25.3]} 11. Bg5
{[%clk 0:02:29.1]} 11... Be6 {[%clk 0:02:20.2]} 12. O-O {[%clk 0:02:19.6]} 12...
O-O {[%clk 0:02:16.5]} 13. Bxc6 {[%clk 0:02:18.1]} 13... bxc6 {[%clk 0:02:13.7]}
14. Na4 {[%clk 0:02:14.2]} 14... Qb4 {[%clk 0:02:04.1]} 15. b3 {[%clk
0:02:14.2]} 15... f6 {[%clk 0:02:02.3]} 16. Bd2 {[%clk 0:02:13.7]} 16... Qb8
{[%clk 0:02:00.8]} 17. Nf4 {[%clk 0:02:10.2]} 17... Bf7 {[%clk 0:01:57.6]} 18.
Nc5 {[%clk 0:01:55.1]} 18... fxe5 {[%clk 0:01:49.1]} 19. dxe5 {[%clk 0:01:49.7]}
19... Bxe5 {[%clk 0:01:45.9]} 20. Nd7 {[%clk 0:01:44.4]} 20... Qd6 {[%clk
0:01:45.3]} 21. Nxe5 {[%clk 0:01:39.4]} 21... Qxe5 {[%clk 0:01:43]} 22. Rc1
{[%clk 0:01:33.6]} 22... Qd6 {[%clk 0:01:29.2]} 23. Nd3 {[%clk 0:01:30.9]} 23...
Rfe8 {[%clk 0:01:07.9]} 24. Bb4 {[%clk 0:01:26.3]} 24... Qf6 {[%clk 0:01:07.5]}
25. f4 {[%clk 0:01:15.9]} 25... Ne3 {[%clk 0:00:54.5]} 26. Qd2 {[%clk
0:01:10.5]} 26... Nxf1 {[%clk 0:00:52.7]} 27. Rxf1 {[%clk 0:01:11.4]} 27... Qxh4
{[%clk 0:00:45.3]} 28. Ne5 {[%clk 0:01:05.3]} 28... Qf6 {[%clk 0:00:40.4]} 29.
Bc5 {[%clk 0:01:05.1]} 29... a5 {[%clk 0:00:36.3]} 30. Rf3 {[%clk 0:00:57.2]}
30... a4 {[%clk 0:00:32.4]} 31. b4 {[%clk 0:00:56.9]} 31... d4 {[%clk
0:00:32.3]} 32. Rg3 {[%clk 0:00:39.8]} 32... Rad8 {[%clk 0:00:22.9]} 33. Qd3
{[%clk 0:00:34.6]} 33... Kh7 {[%clk 0:00:22.7]} 34. Rg5 {[%clk 0:00:32.8]} 34...
Qxf4 {[%clk 0:00:16.6]} 35. Rxg6 {[%clk 0:00:29.8]} 35... Qe3+ {[%clk
0:00:13.9]} 36. Qxe3 {[%clk 0:00:28.3]} 36... dxe3 {[%clk 0:00:14.8]} 37. Rg3
{[%clk 0:00:20.3]} 37... Rd1+ {[%clk 0:00:14.6]} 38. Kh2 {[%clk 0:00:18.4]}
38... e2 {[%clk 0:00:10.6]} 39. Bf2 {[%clk 0:00:19]} 39... Be6 {[%clk
0:00:07.1]} 40. Re3 {[%clk 0:00:17.9]} 40... Bxa2 {[%clk 0:00:04.9]} 41. Rxe2
{[%clk 0:00:17.2]} 41... Bd5 {[%clk 0:00:04.9]} 42. Re3 {[%clk 0:00:10.4]} 42...
Rg8 {[%clk 0:00:04.5]} 43. g4 {[%clk 0:00:05.5]} 43... Rd2 {[%clk 0:00:04.7]}
44. Kg3 {[%clk 0:00:05.4]} 44... h4+ {[%clk 0:00:03.7]} 45. Kxh4 {[%clk
0:00:05.8]} 45... Rxf2 {[%clk 0:00:03.9]} 46. Nd3 {[%clk 0:00:06.7]} 46... Rh2+
{[%clk 0:00:04]} 47. Kg3 {[%clk 0:00:07]} 47... Rd2 {[%clk 0:00:03.4]} 48. Kh3
{[%clk 0:00:07.9]} 48... Rf8 {[%clk 0:00:03]} 49. Rxe7+ {[%clk 0:00:07.8]} 49...
Kg8 {[%clk 0:00:03.1]} 50. Ne5 {[%clk 0:00:07.5]} 50... Re2 {[%clk 0:00:03.7]}
51. g5 {[%clk 0:00:06.9]} 51... Rf7 {[%clk 0:00:04]} 52. Re8+ {[%clk 0:00:06.2]}
52... Kg7 {[%clk 0:00:04.4]} 53. g6 {[%clk 0:00:06.5]} 53... Rxe5 {[%clk
0:00:02]} 54. gxf7 {[%clk 0:00:06.1]} 54... Rh5+ {[%clk 0:00:01.8]} 55. Kg4
{[%clk 0:00:05.7]} 55... Bxf7 {[%clk 0:00:02.7]} 56. Ra8 {[%clk 0:00:05.8]}
56... Rb5 {[%clk 0:00:02.3]} 57. Rxa4 {[%clk 0:00:06]} 57... Kf6 {[%clk
0:00:03.2]} 58. Kf4 {[%clk 0:00:05.9]} 58... Bd5 {[%clk 0:00:03.7]} 59. Ke3
{[%clk 0:00:06.1]} 59... Ke5 {[%clk 0:00:04.1]} 60. Kd3 {[%clk 0:00:06.2]} 60...
Rb8 {[%clk 0:00:04.6]} 61. Kc3 {[%clk 0:00:06.7]} 61... Rh8 {[%clk 0:00:05.1]}
62. Ra7 {[%clk 0:00:06.7]} 62... Rh3+ {[%clk 0:00:05.6]} 63. Kb2 {[%clk
0:00:07.1]} 63... Kd4 {[%clk 0:00:06.5]} 64. Rg7 {[%clk 0:00:06.9]} 64... Rh2+
{[%clk 0:00:05.6]} 65. Kb1 {[%clk 0:00:04.6]} 65... Kc4 {[%clk 0:00:05.5]} 66.
Rg4+ {[%clk 0:00:04.1]} 66... Kb3 {[%clk 0:00:05.9]} 67. Kc1 {[%clk 0:00:03.5]}
67... Rc2+ {[%clk 0:00:05.1]} 68. Kd1 {[%clk 0:00:03.5]} 68... Bf3+ {[%clk
0:00:05.7]} 0-1

[Event "Late-Titled-Tuesday-Blitz-March-19-2024"]
[Site "Chess.com"]
[Date "2024.03.19"]
[Round "6"]
[White "VD_coach"]
[Black "Alexei_Gubajdullin"]
[Result "1/2-1/2"]
[WhiteElo "2515"]
[BlackElo "2652"]
[TimeControl "180+1"]
[EndTime "15:06:43 PDT"]
[Termination "Game drawn - insufficient material"]

1. Nf3 {[%clk 0:03:00.9]} 1... Nf6 {[%clk 0:02:58.9]} 2. d4 {[%clk 0:02:59.4]}
2... g6 {[%clk 0:02:56.9]} 3. c4 {[%clk 0:03:00]} 3... Bg7 {[%clk 0:02:57.2]} 4.
g3 {[%clk 0:02:59.8]} 4... d6 {[%clk 0:02:57.5]} 5. Bg2 {[%clk 0:03:00.3]} 5...
O-O {[%clk 0:02:58.1]} 6. O-O {[%clk 0:03:01]} 6... Nbd7 {[%clk 0:02:58.5]} 7.
Nc3 {[%clk 0:03:01.4]} 7... e5 {[%clk 0:02:59]} 8. dxe5 {[%clk 0:03:01.6]} 8...
dxe5 {[%clk 0:02:58.8]} 9. h3 {[%clk 0:03:01.9]} 9... e4 {[%clk 0:02:57.8]} 10.
Ng5 {[%clk 0:02:59.9]} 10... Ne5 {[%clk 0:02:48.6]} 11. Ngxe4 {[%clk 0:02:49.5]}
11... Nxe4 {[%clk 0:02:40.6]} 12. Nxe4 {[%clk 0:02:47.6]} 12... Nxc4 {[%clk
0:02:38]} 13. Qxd8 {[%clk 0:02:27]} 13... Rxd8 {[%clk 0:02:36.4]} 14. Bg5 {[%clk
0:02:27.2]} 14... Re8 {[%clk 0:02:33.6]} 15. Nf6+ {[%clk 0:02:15.9]} 15... Bxf6
{[%clk 0:02:32.5]} 16. Bxf6 {[%clk 0:02:16.8]} 16... Rxe2 {[%clk 0:02:31.9]} 17.
Rfc1 {[%clk 0:01:44.5]} 17... Nd6 {[%clk 0:02:28.9]} 18. Rxc7 {[%clk 0:01:37.9]}
18... Ne8 {[%clk 0:02:27]} 19. Re7 {[%clk 0:01:36.1]} 19... Rxe7 {[%clk
0:02:07.3]} 20. Bxe7 {[%clk 0:01:37]} 20... Bd7 {[%clk 0:01:50.8]} 21. Rd1
{[%clk 0:01:17.1]} 21... Bc6 {[%clk 0:01:49.6]} 22. Bxc6 {[%clk 0:01:10.7]}
22... bxc6 {[%clk 0:01:49.8]} 23. Rd7 {[%clk 0:01:09.7]} 23... a5 {[%clk
0:01:49.2]} 24. Rd8 {[%clk 0:01:05.3]} 24... Rxd8 {[%clk 0:01:46.3]} 25. Bxd8
{[%clk 0:01:06.2]} 25... a4 {[%clk 0:01:46.5]} 26. Kf1 {[%clk 0:01:06.5]} 26...
Nd6 {[%clk 0:01:45.5]} 27. Ke2 {[%clk 0:01:01.2]} 27... f5 {[%clk 0:01:32.4]}
28. Kd3 {[%clk 0:00:58.7]} 28... Kf7 {[%clk 0:01:24.4]} 29. f3 {[%clk
0:00:46.4]} 29... Ke6 {[%clk 0:01:17.2]} 30. Kc3 {[%clk 0:00:42.4]} 30... c5
{[%clk 0:01:00.4]} 31. b3 {[%clk 0:00:28.8]} 31... a3 {[%clk 0:00:54.8]} 32. Ba5
{[%clk 0:00:18.8]} 32... Kd5 {[%clk 0:00:53.4]} 33. Kc2 {[%clk 0:00:18.1]} 33...
Nb5 {[%clk 0:00:52.1]} 34. Bc3 {[%clk 0:00:14.1]} 34... h5 {[%clk 0:00:45.9]}
35. Kd3 {[%clk 0:00:10.7]} 35... Nc7 {[%clk 0:00:29.9]} 36. Bd2 {[%clk 0:00:10]}
36... Ne6 {[%clk 0:00:29.3]} 37. Bc1 {[%clk 0:00:10.3]} 37... Nd4 {[%clk
0:00:28.6]} 38. Bxa3 {[%clk 0:00:07.9]} 38... Nxf3 {[%clk 0:00:28.5]} 39. Bb2
{[%clk 0:00:05.9]} 39... g5 {[%clk 0:00:21.9]} 40. a4 {[%clk 0:00:05.3]} 40...
g4 {[%clk 0:00:18.2]} 41. hxg4 {[%clk 0:00:05.4]} 41... fxg4 {[%clk 0:00:18.4]}
42. Ke3 {[%clk 0:00:05.4]} 42... Ng5 {[%clk 0:00:16.4]} 43. a5 {[%clk
0:00:05.3]} 43... Ne6 {[%clk 0:00:16.1]} 44. a6 {[%clk 0:00:05.6]} 44... Kc6
{[%clk 0:00:15.7]} 45. Ke4 {[%clk 0:00:04.7]} 45... Kb6 {[%clk 0:00:14.8]} 46.
Kf5 {[%clk 0:00:04.9]} 46... Nd4+ {[%clk 0:00:15]} 47. Kg5 {[%clk 0:00:05.1]}
47... Ne2 {[%clk 0:00:15.1]} 48. Kxh5 {[%clk 0:00:05.1]} 48... Nxg3+ {[%clk
0:00:15.3]} 49. Kxg4 {[%clk 0:00:05.2]} 49... Ne4 {[%clk 0:00:15.2]} 50. Ba3
{[%clk 0:00:05.3]} 50... Kxa6 {[%clk 0:00:12.8]} 51. Bxc5 {[%clk 0:00:05]} 51...
Nxc5 {[%clk 0:00:12.6]} 52. b4 {[%clk 0:00:05.8]} 52... Na4 {[%clk 0:00:12.6]}
53. b5+ {[%clk 0:00:06.7]} 53... Kb6 {[%clk 0:00:12.9]} 54. Kh3 {[%clk
0:00:06.6]} 54... Nc5 {[%clk 0:00:13.2]} 55. Kg2 {[%clk 0:00:07.5]} 55... Nd3
{[%clk 0:00:13.8]} 56. Kh1 {[%clk 0:00:08.4]} 56... Nf4 {[%clk 0:00:14.4]} 57.
Kh2 {[%clk 0:00:08.4]} 57... Ne2 {[%clk 0:00:15.1]} 58. Kh3 {[%clk 0:00:08.4]}
58... Nc3 {[%clk 0:00:16]} 59. Kh4 {[%clk 0:00:09.3]} 59... Ne4 {[%clk
0:00:16.9]} 60. Kh5 {[%clk 0:00:10.2]} 60... Nf2 {[%clk 0:00:17.4]} 61. Kh6
{[%clk 0:00:11.1]} 61... Ne4 {[%clk 0:00:17.9]} 62. Kh7 {[%clk 0:00:12]} 62...
Nd6 {[%clk 0:00:18.4]} 63. Kh8 {[%clk 0:00:12.9]} 63... Nf5 {[%clk 0:00:18.8]}
64. Kg8 {[%clk 0:00:13.8]} 64... Ne3 {[%clk 0:00:19.3]} 65. Kf8 {[%clk
0:00:14.7]} 65... Nc4 {[%clk 0:00:20]} 66. Kg7 {[%clk 0:00:15.6]} 66... Nd6
{[%clk 0:00:20.4]} 67. Kh6 {[%clk 0:00:16.5]} 67... Nc4 {[%clk 0:00:20.8]} 68.
Kg5 {[%clk 0:00:17.4]} 68... Na3 {[%clk 0:00:21.5]} 69. Kh4 {[%clk 0:00:18.3]}
69... Nc2 {[%clk 0:00:22.1]} 70. Kg3 {[%clk 0:00:19.2]} 70... Nb4 {[%clk
0:00:22.8]} 71. Kg2 {[%clk 0:00:20.1]} 71... Nd5 {[%clk 0:00:23.5]} 72. Kg1
{[%clk 0:00:21]} 72... Nc7 {[%clk 0:00:24.1]} 73. Kf1 {[%clk 0:00:21.9]} 73...
Ne6 {[%clk 0:00:24.9]} 74. Ke1 {[%clk 0:00:22.8]} 74... Ng5 {[%clk 0:00:25.7]}
75. Kd1 {[%clk 0:00:23.7]} 75... Nf7 {[%clk 0:00:26.6]} 76. Kc1 {[%clk
0:00:24.6]} 76... Ne5 {[%clk 0:00:27.4]} 77. Kb1 {[%clk 0:00:25.5]} 77... Nc4
{[%clk 0:00:28.1]} 78. Ka1 {[%clk 0:00:26.4]} 78... Nd2 {[%clk 0:00:28.6]} 79.
Ka2 {[%clk 0:00:27.3]} 79... Nc4 {[%clk 0:00:29]} 80. Kb3 {[%clk 0:00:27.3]}
80... Na5+ {[%clk 0:00:29.5]} 81. Kc2 {[%clk 0:00:28.2]} 81... Nb7 {[%clk
0:00:30.1]} 82. Kd3 {[%clk 0:00:29.1]} 82... Nd8 {[%clk 0:00:31]} 83. Ke2 {[%clk
0:00:30]} 83... Nf7 {[%clk 0:00:31.8]} 84. Kf3 {[%clk 0:00:30.9]} 84... Nh6
{[%clk 0:00:32.6]} 85. Kg2 {[%clk 0:00:31.8]} 85... Nf7 {[%clk 0:00:33.2]} 86.
Kh3 {[%clk 0:00:32.7]} 86... Nd8 {[%clk 0:00:33.8]} 87. Kg4 {[%clk 0:00:33.6]}
87... Nb7 {[%clk 0:00:33.9]} 88. Kh5 {[%clk 0:00:34.5]} 88... Nc5 {[%clk
0:00:34.6]} 89. Kg6 {[%clk 0:00:35.4]} 89... Ne4 {[%clk 0:00:35.4]} 90. Kf7
{[%clk 0:00:36.3]} 90... Nc5 {[%clk 0:00:36]} 91. Kg8 {[%clk 0:00:37.2]} 91...
Nd3 {[%clk 0:00:36.7]} 92. Kg7 {[%clk 0:00:38.1]} 92... Ne5 {[%clk 0:00:37.5]}
93. Kf6 {[%clk 0:00:37.8]} 93... Nc4 {[%clk 0:00:35.2]} 94. Kg5 {[%clk
0:00:37.9]} 94... Na3 {[%clk 0:00:35.1]} 95. Kf4 {[%clk 0:00:38.6]} 95... Nxb5
{[%clk 0:00:35.2]} 1/2-1/2

[Event "Late-Titled-Tuesday-Blitz-March-19-2024"]
[Site "Chess.com"]
[Date "2024.03.19"]
[Round "6"]
[White "HajiyevKanan"]
[Black "CheckThis4"]
[Result "0-1"]
[WhiteElo "2510"]
[BlackElo "2673"]
[TimeControl "180+1"]
[EndTime "15:06:46 PDT"]
[Termination "CheckThis4 won by resignation"]

1. d4 {[%clk 0:03:00.9]} 1... Nf6 {[%clk 0:02:58.3]} 2. Nf3 {[%clk 0:03:01.4]}
2... g6 {[%clk 0:02:57.1]} 3. g3 {[%clk 0:03:01.5]} 3... Bg7 {[%clk 0:02:57.2]}
4. Bg2 {[%clk 0:03:02.4]} 4... O-O {[%clk 0:02:57.4]} 5. O-O {[%clk 0:03:03.3]}
5... d5 {[%clk 0:02:56.9]} 6. b3 {[%clk 0:03:04.2]} 6... c5 {[%clk 0:02:56.1]}
7. Bb2 {[%clk 0:03:05.1]} 7... Nc6 {[%clk 0:02:55.5]} 8. e3 {[%clk 0:02:50.3]}
8... cxd4 {[%clk 0:02:51]} 9. Nxd4 {[%clk 0:02:50.1]} 9... Bd7 {[%clk
0:02:48.9]} 10. Nxc6 {[%clk 0:02:48.8]} 10... Bxc6 {[%clk 0:02:48.7]} 11. c4
{[%clk 0:02:49.1]} 11... dxc4 {[%clk 0:02:42.2]} 12. Bxc6 {[%clk 0:02:48.5]}
12... bxc6 {[%clk 0:02:40.6]} 13. bxc4 {[%clk 0:02:44]} 13... Qc8 {[%clk
0:02:23.2]} 14. Nd2 {[%clk 0:02:35]} 14... Qh3 {[%clk 0:02:16.4]} 15. Bxf6
{[%clk 0:02:34.4]} 15... Bxf6 {[%clk 0:02:13.3]} 16. Rb1 {[%clk 0:02:35.3]}
16... Rfd8 {[%clk 0:02:12]} 17. Qe2 {[%clk 0:02:23.9]} 17... Qf5 {[%clk
0:01:53.4]} 18. Nb3 {[%clk 0:02:05.9]} 18... h5 {[%clk 0:01:50.3]} 19. Rfd1
{[%clk 0:01:55.8]} 19... h4 {[%clk 0:01:46.5]} 20. g4 {[%clk 0:01:56.4]} 20...
Qe6 {[%clk 0:01:20.8]} 21. h3 {[%clk 0:01:55.7]} 21... Rxd1+ {[%clk 0:00:59.5]}
22. Rxd1 {[%clk 0:01:53.8]} 22... a5 {[%clk 0:01:00.1]} 23. Qc2 {[%clk
0:01:18.8]} 23... Qe5 {[%clk 0:00:54.9]} 24. Nd4 {[%clk 0:01:14.5]} 24... Qc5
{[%clk 0:00:50.9]} 25. Qa4 {[%clk 0:01:08.1]} 25... Bxd4 {[%clk 0:00:46]} 26.
exd4 {[%clk 0:01:08.3]} 26... Qd6 {[%clk 0:00:41.3]} 27. Qb3 {[%clk 0:00:55.2]}
27... Rb8 {[%clk 0:00:39.4]} 28. c5 {[%clk 0:00:48]} 28... Qc7 {[%clk
0:00:36.5]} 29. Qc2 {[%clk 0:00:43.5]} 29... Qf4 {[%clk 0:00:32.4]} 30. Qd2
{[%clk 0:00:38.4]} 30... Qf3 {[%clk 0:00:31]} 31. Qd3 {[%clk 0:00:37.9]} 31...
Qd5 {[%clk 0:00:28.8]} 32. Qe2 {[%clk 0:00:32.2]} 32... e6 {[%clk 0:00:23.5]}
33. Qe5 {[%clk 0:00:28.8]} 33... Rb2 {[%clk 0:00:21.8]} 34. Qf6 {[%clk
0:00:21.5]} 34... Qxa2 {[%clk 0:00:16.8]} 35. Qd8+ {[%clk 0:00:21.6]} 35... Kg7
{[%clk 0:00:16.4]} 36. Qxh4 {[%clk 0:00:20.9]} 36... Qb3 {[%clk 0:00:16.1]} 37.
Re1 {[%clk 0:00:16.4]} 37... Rb1 {[%clk 0:00:16.5]} 38. Rxb1 {[%clk 0:00:12]}
38... Qxb1+ {[%clk 0:00:17.4]} 39. Kh2 {[%clk 0:00:12.7]} 39... Qe4 {[%clk
0:00:16.3]} 40. Qe7 {[%clk 0:00:09.6]} 40... Qxd4 {[%clk 0:00:15.8]} 41. Kg2
{[%clk 0:00:08.2]} 41... Qd5+ {[%clk 0:00:15.8]} 42. f3 {[%clk 0:00:06.9]} 42...
a4 {[%clk 0:00:15.7]} 43. Qa7 {[%clk 0:00:06.1]} 43... Qa2+ {[%clk 0:00:14.4]}
44. Kg3 {[%clk 0:00:06]} 44... Qb3 {[%clk 0:00:14]} 45. Qc7 {[%clk 0:00:05.3]}
45... Qd5 {[%clk 0:00:13]} 46. Qa7 {[%clk 0:00:05.5]} 46... e5 {[%clk
0:00:13.1]} 47. Qxa4 {[%clk 0:00:04.9]} 47... Qxc5 {[%clk 0:00:13.4]} 48. Qe4
{[%clk 0:00:05.6]} 48... Qd4 {[%clk 0:00:12.6]} 49. Qxc6 {[%clk 0:00:05.8]}
49... Qg1+ {[%clk 0:00:12.6]} 50. Kh4 {[%clk 0:00:05.5]} 50... Qf2+ {[%clk
0:00:12.4]} 51. Kg5 {[%clk 0:00:05.1]} 51... Qe3+ {[%clk 0:00:12.1]} 52. Kh4
{[%clk 0:00:05.5]} 52... Qe1+ {[%clk 0:00:12.1]} 53. Kg5 {[%clk 0:00:05.3]}
53... Qd2+ {[%clk 0:00:11.8]} 54. Kh4 {[%clk 0:00:05.9]} 54... Qe1+ {[%clk
0:00:10.8]} 55. Kg5 {[%clk 0:00:06.4]} 55... Qg3 {[%clk 0:00:10.2]} 56. Qf6+
{[%clk 0:00:05.8]} 56... Kg8 {[%clk 0:00:10.7]} 57. Kh6 {[%clk 0:00:03.7]} 57...
Qxh3+ {[%clk 0:00:09.4]} 58. Kg5 {[%clk 0:00:04.4]} 58... Qh2 {[%clk 0:00:09.4]}
59. f4 {[%clk 0:00:03.6]} 59... Qxf4+ {[%clk 0:00:08.5]} 60. Qxf4 {[%clk
0:00:03.6]} 60... exf4 {[%clk 0:00:09.4]} 61. Kxf4 {[%clk 0:00:04.5]} 61... Kg7
{[%clk 0:00:09.4]} 62. g5 {[%clk 0:00:04.4]} 62... Kf8 {[%clk 0:00:09.7]} 63.
Ke4 {[%clk 0:00:04.3]} 63... Ke8 {[%clk 0:00:09.3]} 64. Kd5 {[%clk 0:00:02.4]}
64... Kd7 {[%clk 0:00:09.2]} 65. Ke5 {[%clk 0:00:02.5]} 65... Ke7 {[%clk
0:00:09.7]} 66. Kd5 {[%clk 0:00:03.2]} 66... f6 {[%clk 0:00:09.9]} 67. gxf6+
{[%clk 0:00:03.5]} 67... Kxf6 {[%clk 0:00:10.8]} 68. Ke4 {[%clk 0:00:04.3]}
68... Kg5 {[%clk 0:00:11.5]} 69. Kf3 {[%clk 0:00:04.7]} 69... Kh4 {[%clk
0:00:12.1]} 70. Kg2 {[%clk 0:00:05]} 70... Kg4 {[%clk 0:00:12.3]} 71. Kg1 {[%clk
0:00:05.8]} 71... Kg3 {[%clk 0:00:12.5]} 72. Kh1 {[%clk 0:00:06.5]} 72... g5
{[%clk 0:00:12.6]} 73. Kg1 {[%clk 0:00:07.4]} 73... g4 {[%clk 0:00:12.8]} 74.
Kf1 {[%clk 0:00:08]} 74... Kh2 {[%clk 0:00:12.9]} 0-1

[Event "Late-Titled-Tuesday-Blitz-March-19-2024"]
[Site "Chess.com"]
[Date "2024.03.19"]
[Round "6"]
[White "Heinza9"]
[Black "Willhaven3"]
[Result "1-0"]
[WhiteElo "2342"]
[BlackElo "2493"]
[TimeControl "180+1"]
[EndTime "15:06:49 PDT"]
[Termination "Heinza9 won on time"]

1. c4 {[%clk 0:03:00.9]} 1... f5 {[%clk 0:02:59.5]} 2. Nc3 {[%clk 0:03:00.7]}
2... Nf6 {[%clk 0:03:00]} 3. d3 {[%clk 0:02:58.9]} 3... g6 {[%clk 0:02:56.7]} 4.
e4 {[%clk 0:02:58.7]} 4... d6 {[%clk 0:02:56]} 5. Be2 {[%clk 0:02:57.3]} 5...
Bg7 {[%clk 0:02:56.3]} 6. h4 {[%clk 0:02:56.7]} 6... h6 {[%clk 0:02:48.4]} 7. h5
{[%clk 0:02:46.8]} 7... g5 {[%clk 0:02:46.5]} 8. exf5 {[%clk 0:02:44.1]} 8...
Bxf5 {[%clk 0:02:47.4]} 9. d4 {[%clk 0:02:41.7]} 9... Nc6 {[%clk 0:02:45.8]} 10.
Be3 {[%clk 0:02:36.3]} 10... Qd7 {[%clk 0:02:44]} 11. Nf3 {[%clk 0:02:34.3]}
11... Ng4 {[%clk 0:02:17.2]} 12. d5 {[%clk 0:02:28.8]} 12... Nxe3 {[%clk
0:02:04.5]} 13. fxe3 {[%clk 0:02:29.7]} 13... Ne5 {[%clk 0:02:03.8]} 14. e4
{[%clk 0:02:25.2]} 14... Bg4 {[%clk 0:01:46.5]} 15. Nxe5 {[%clk 0:02:23.9]}
15... Bxe2 {[%clk 0:01:47.4]} 16. Nxd7 {[%clk 0:02:19.4]} 16... Bxd1 {[%clk
0:01:47.3]} 17. Kxd1 {[%clk 0:02:10.9]} 17... Kxd7 {[%clk 0:01:44.1]} 18. Kc2
{[%clk 0:02:10.4]} 18... Rhf8 {[%clk 0:01:43.8]} 19. Raf1 {[%clk 0:02:10.1]}
19... Rxf1 {[%clk 0:01:22.7]} 20. Rxf1 {[%clk 0:02:11]} 20... Rf8 {[%clk
0:01:22.3]} 21. Rxf8 {[%clk 0:02:05.9]} 21... Bxf8 {[%clk 0:01:23.2]} 22. Ne2
{[%clk 0:02:03.3]} 22... e5 {[%clk 0:01:16.9]} 23. Ng3 {[%clk 0:02:01]} 23... c6
{[%clk 0:01:14.6]} 24. Nf5 {[%clk 0:01:59]} 24... b5 {[%clk 0:01:13.8]} 25. cxb5
{[%clk 0:01:52.6]} 25... cxb5 {[%clk 0:01:10.1]} 26. Kb3 {[%clk 0:01:48]} 26...
Kc7 {[%clk 0:01:08.9]} 27. a4 {[%clk 0:01:46.3]} 27... Kb6 {[%clk 0:01:08.6]}
28. axb5 {[%clk 0:01:36.6]} 28... Kxb5 {[%clk 0:01:09.5]} 29. Ne3 {[%clk
0:01:25.8]} 29... a5 {[%clk 0:00:54.2]} 30. Kc3 {[%clk 0:01:25.7]} 30... Be7
{[%clk 0:00:47.6]} 31. Nf5 {[%clk 0:01:24.7]} 31... Bf8 {[%clk 0:00:47.3]} 32.
Kd3 {[%clk 0:01:15.4]} 32... Kb4 {[%clk 0:00:43.9]} 33. Ne3 {[%clk 0:01:14.1]}
33... Kb3 {[%clk 0:00:34.4]} 34. Nc4 {[%clk 0:01:04.5]} 34... a4 {[%clk
0:00:34.5]} 35. Nb6 {[%clk 0:00:54.6]} 35... Be7 {[%clk 0:00:29.1]} 36. Nc4
{[%clk 0:00:43.7]} 36... Bd8 {[%clk 0:00:24.9]} 37. Nxd6 {[%clk 0:00:43.6]}
37... Kxb2 {[%clk 0:00:25]} 38. Nc4+ {[%clk 0:00:42.7]} 38... Kb3 {[%clk
0:00:23.4]} 39. d6 {[%clk 0:00:12.8]} 39... Kb4 {[%clk 0:00:20]} 40. Nxe5 {[%clk
0:00:09.3]} 40... a3 {[%clk 0:00:19]} 41. Kc2 {[%clk 0:00:09.8]} 41... Kc5
{[%clk 0:00:18.5]} 42. Nd3+ {[%clk 0:00:09.7]} 42... Kxd6 {[%clk 0:00:17.8]} 43.
Kb3 {[%clk 0:00:10.6]} 43... g4 {[%clk 0:00:11.1]} 44. Kxa3 {[%clk 0:00:10.8]}
44... Ke6 {[%clk 0:00:11.8]} 45. Kb3 {[%clk 0:00:11.1]} 45... Kf6 {[%clk
0:00:12.4]} 46. Kc4 {[%clk 0:00:10.6]} 46... Kg5 {[%clk 0:00:13.3]} 47. Kd5
{[%clk 0:00:10.5]} 47... Kxh5 {[%clk 0:00:13.8]} 48. e5 {[%clk 0:00:10.1]} 48...
Kh4 {[%clk 0:00:14.1]} 49. Ne1 {[%clk 0:00:08]} 49... Kg3 {[%clk 0:00:13.3]} 50.
Ke4 {[%clk 0:00:08.4]} 50... h5 {[%clk 0:00:11.8]} 51. e6 {[%clk 0:00:07.9]}
51... h4 {[%clk 0:00:11.8]} 52. Ke3 {[%clk 0:00:07.5]} 52... Be7 {[%clk
0:00:10.1]} 53. Ke2 {[%clk 0:00:06.9]} 53... Bg5 {[%clk 0:00:10.5]} 54. Kf1
{[%clk 0:00:05.3]} 54... Be7 {[%clk 0:00:10.3]} 55. Nd3 {[%clk 0:00:05.5]} 55...
h3 {[%clk 0:00:07.3]} 56. gxh3 {[%clk 0:00:06]} 56... gxh3 {[%clk 0:00:07.3]}
57. Kg1 {[%clk 0:00:06]} 57... Kg4 {[%clk 0:00:07]} 58. Kh1 {[%clk 0:00:06]}
58... Bd6 {[%clk 0:00:05.9]} 59. Nf2+ {[%clk 0:00:06]} 59... Kf5 {[%clk
0:00:05.9]} 60. e7 {[%clk 0:00:03.4]} 60... Ke6 {[%clk 0:00:06.8]} 61. e8=Q+
{[%clk 0:00:03.1]} 61... Kd5 {[%clk 0:00:06.9]} 62. Qd7 {[%clk 0:00:03.2]} 62...
Kc5 {[%clk 0:00:06.9]} 63. Qc8+ {[%clk 0:00:02.9]} 63... Kd5 {[%clk 0:00:05.4]}
64. Nxh3 {[%clk 0:00:03.8]} 64... Be5 {[%clk 0:00:04.8]} 65. Ng5 {[%clk
0:00:04.4]} 65... Bd4 {[%clk 0:00:03.5]} 66. Qe6+ {[%clk 0:00:05.3]} 66... Kc5
{[%clk 0:00:03.1]} 67. Qe4 {[%clk 0:00:05.9]} 67... Kc4 {[%clk 0:00:03.2]} 68.
Ne6 {[%clk 0:00:06.8]} 68... Kb3 {[%clk 0:00:02.8]} 69. Qxd4 {[%clk 0:00:07.7]}
69... Kc2 {[%clk 0:00:03.4]} 70. Kg2 {[%clk 0:00:08.4]} 70... Kc1 {[%clk
0:00:03.3]} 71. Kf3 {[%clk 0:00:09]} 1-0